bitfinex-derivatives/quotes_ETHF0:USTF0_20260125
["timestamp","ask_amount","ask_price","bid_price","bid_amount"]
[1769351770628,0.17064,2934.4,2933.2,0.00323989]
[1769351770925,3.93571298,2934.3,2933.2,0.00323989]
[1769351771126,3.93571298,2934.2,2933.2,0.00323989]
[1769351771326,0.30794755,2934.4,2933.2,0.00323989]
[1769351771530,3.93481964,2934.3,2933.2,0.00323989]
[1769351771832,3.93481964,2934.2,2933.2,0.00323989]
[1769351772035,0.30794755,2934.4,2933.2,0.00323989]
[1769351772230,3.93488243,2934.3,2933.2,0.00323989]
[1769351772426,3.93488243,2934.2,2933.2,0.00323989]
[1769351772632,0.30794755,2934.4,2933.2,0.00323989]
[1769351772831,3.93429577,2934.3,2933.2,0.00323989]
[1769351773031,3.93429577,2934.2,2933.2,0.00323989]
[1769351773232,0.30794755,2934.4,2933.2,0.00323989]
[1769351773542,3.93394994,2934.3,2933.2,0.00323989]
[1769351773837,0.30794755,2934.4,2933.2,0.00323989]
[1769351774037,3.93372911,2934.3,2933.2,0.00323989]
[1769351774240,0.30794755,2934.4,2933.2,0.00323989]
[1769351774438,3.9338842,2934.3,2933.2,0.00323989]
[1769351774737,0.30794755,2934.4,2933.2,0.00323989]
[1769351774941,3.93389614,2934.3,2933.2,0.00323989]
[1769351775143,0.30794755,2934.4,2933.2,0.00323989]
[1769351775439,3.93373152,2934.3,2933.2,0.00323989]
[1769351775638,0.30794755,2934.4,2933.2,0.00323989]
[1769351775839,3.93364771,2934.3,2933.2,0.00323989]
[1769351776141,0.30794755,2934.4,2933.2,0.00323989]
[1769351776440,3.93313728,2934.3,2933.2,0.00323989]
[1769351776638,0.30794755,2934.4,2933.2,0.00323989]
[1769351776936,0.17064,2934.4,2933.2,0.00323989]
[1769351781637,4.07069284,2934.3,2933.2,0.00323989]
[1769351781841,0.13647694,2934.3,2933.2,0.00323989]
[1769351784542,3.93414601,2934.2,2933.2,0.00323989]
[1769351784750,0.13647694,2934.3,2933.2,0.00323989]
[1769351784936,3.93416163,2934.2,2933.2,0.00323989]
[1769351785131,0.13647694,2934.3,2933.2,0.00323989]
[1769351785437,0.17065,2934.1,2933.2,0.00323989]
[1769351785739,0.1346316,2933.9,2932.3,0.14304338]
[1769351786436,0.1346316,2933.9,2932.3,2.14504338]
[1769351786641,0.1346316,2933.9,2932.3,2.14844727]
[1769351788641,4.06584568,2933.8,2932.3,2.14844727]
[1769351788846,3.93128655,2933.7,2932.3,0.14644727]
[1769351789147,3.9320939,2933.6,2932.3,0.14644727]
[1769351789339,0.13455913,2933.8,2932.3,0.14644727]
[1769351789645,4.10147537,2933.7,2932.3,0.14644727]
[1769351789845,3.93079537,2933.6,2932.3,0.14644727]
[1769351790047,3.93056464,2933.5,2932.3,0.14644727]
[1769351790344,0.17068,2933.7,2932.3,0.14644727]
[1769351790540,3.92919476,2933.6,2932.3,0.14644727]
[1769351790741,0.17068,2933.7,2932.3,0.14644727]
[1769351790944,3.92958558,2933.6,2932.3,0.14644727]
[1769351791249,0.30223205,2933.7,2932.3,0.14644727]
[1769351791444,3.92855251,2933.6,2932.3,0.14644727]
[1769351791646,0.30223205,2933.7,2932.3,0.14644727]
[1769351791845,3.92884764,2933.6,2932.3,0.14644727]
[1769351792147,0.30223205,2933.7,2932.3,0.14644727]
[1769351792347,3.92884812,2933.6,2932.3,0.14644727]
[1769351792539,0.30223205,2933.7,2932.3,0.14644727]
[1769351792739,3.9277487,2933.6,2932.3,0.14644727]
[1769351792936,0.30223205,2933.7,2932.3,0.14644727]
[1769351793150,3.92774607,2933.6,2932.3,0.14644727]
[1769351793460,0.30223205,2933.7,2932.3,0.14644727]
[1769351793641,3.92726729,2933.6,2932.3,0.14644727]
[1769351793948,0.30223205,2933.7,2932.3,0.14644727]
[1769351794146,3.92726058,2933.6,2932.3,0.14644727]
[1769351794354,0.30223205,2933.7,2932.3,0.14644727]
[1769351794549,3.92697326,2933.6,2932.3,0.14644727]
[1769351794750,0.30223205,2933.7,2932.3,0.14644727]
[1769351795051,3.92697203,2933.6,2932.3,0.14644727]
[1769351795347,0.30223205,2933.7,2932.3,0.14644727]
[1769351795550,3.92683541,2933.6,2932.3,0.14644727]
[1769351795744,0.30223205,2933.7,2932.3,0.14644727]
[1769351796052,3.92683598,2933.6,2932.3,0.14644727]
[1769351796350,0.30223205,2933.7,2932.3,0.14644727]
[1769351796540,3.926805,2933.6,2932.3,0.14644727]
[1769351796737,0.30223205,2933.7,2932.3,0.14644727]
[1769351796955,3.92680429,2933.6,2932.3,0.14644727]
[1769351797257,0.30223205,2933.7,2932.3,0.14644727]
[1769351797444,3.9262742,2933.6,2932.3,0.14644727]
[1769351797645,0.30223205,2933.7,2932.3,0.14644727]
[1769351797845,3.92627502,2933.6,2932.3,0.14644727]
[1769351798044,0.30223205,2933.7,2932.3,0.14644727]
[1769351798245,3.92627318,2933.6,2932.3,0.14644727]
[1769351798542,0.30223205,2933.7,2932.3,0.14644727]
[1769351800253,0.17068,2933.7,2932.3,0.14644727]
[1769351802751,0.17064,2934.3,2932.3,0.14644727]
[1769351802958,3.92998453,2934.2,2932.3,0.14644727]
[1769351803146,3.92998453,2934.1,2932.3,0.14644727]
[1769351803354,3.92998453,2934.0,2932.3,0.14644727]
[1769351803549,0.17064,2934.3,2932.3,0.14644727]
[1769351803856,3.93124264,2934.2,2932.5,0.14548668]
[1769351804056,3.93124264,2934.1,2932.5,0.14548668]
[1769351804257,3.93124264,2934.0,2932.5,0.14548668]
[1769351804462,0.17064,2934.3,2932.5,0.14548668]
[1769351804651,3.93175784,2934.2,2932.5,0.14548668]
[1769351804852,3.93175784,2934.1,2932.5,0.14548668]
[1769351805058,0.17064,2934.3,2932.5,0.14548668]
[1769351805256,3.93175849,2934.2,2932.5,0.14548668]
[1769351805453,3.93175849,2934.1,2932.5,0.14548668]
[1769351805654,0.17064,2934.3,2932.5,0.14548668]
[1769351805954,3.9312544,2934.2,2932.5,0.14548668]
[1769351806154,3.9312544,2934.1,2932.5,0.14548668]
[1769351806460,0.17064,2934.3,2932.5,0.14548668]
[1769351806661,3.9309507,2934.2,2932.5,0.14548668]
[1769351806862,3.9309507,2934.1,2932.5,0.14548668]
[1769351807159,0.17064,2934.3,2932.5,0.14548668]
[1769351807361,3.93091626,2934.2,2932.5,0.14548668]
[1769351807567,3.93091626,2934.1,2932.5,0.14548668]
[1769351807861,0.17064,2934.3,2932.5,0.14548668]
[1769351808052,3.93120569,2934.2,2932.5,0.14548668]
[1769351808252,3.93120569,2934.1,2932.5,0.14548668]
[1769351808453,0.17064,2934.3,2932.5,0.14548668]
[1769351808652,3.93177638,2934.2,2932.5,0.14548668]
[1769351808860,0.17064,2934.3,2932.5,0.14548668]
[1769351809061,3.93176995,2934.2,2932.5,0.14548668]
[1769351809261,3.93176995,2934.1,2932.5,0.14548668]
[1769351809448,0.17064,2934.3,2932.5,0.14548668]
[1769351809650,3.93246774,2934.2,2932.5,0.14548668]
[1769351809855,3.93246774,2934.1,2932.5,0.14548668]
[1769351810064,0.17064,2934.3,2932.5,0.14548668]
[1769351810264,3.93248526,2934.2,2932.5,0.14548668]
[1769351810462,3.93248526,2934.1,2932.5,0.14548668]
[1769351810763,0.17064,2934.3,2932.5,0.14548668]
[1769351810961,3.93327438,2934.2,2932.5,0.14548668]
[1769351811159,3.93327438,2934.1,2932.5,0.14548668]
[1769351811366,0.17064,2934.3,2932.5,0.14548668]
[1769351811564,3.93415797,2934.2,2932.5,0.14548668]
[1769351811759,3.93415797,2934.1,2932.5,0.14548668]
[1769351811959,0.17064,2934.3,2932.5,0.14548668]
[1769351812156,3.93415779,2934.2,2932.5,0.14548668]
[1769351812363,3.93415779,2934.1,2932.5,0.14548668]
[1769351812561,0.17064,2934.3,2932.5,0.14548668]
[1769351812861,3.93459551,2934.2,2932.5,0.14548668]
[1769351813066,3.93459551,2934.1,2932.5,0.14548668]
[1769351813262,0.17064,2934.3,2932.5,0.14548668]
[1769351813557,3.93506116,2934.2,2932.5,0.14548668]
[1769351813761,3.93506116,2934.1,2932.5,0.14548668]
[1769351813963,0.17064,2934.3,2932.5,0.14548668]
[1769351814170,3.93506145,2934.2,2932.5,0.14548668]
[1769351814466,3.93506145,2934.1,2932.5,0.14548668]
[1769351814663,3.93506145,2934.0,2932.5,0.14548668]
[1769351814864,0.17064,2934.3,2932.5,0.14548668]
[1769351815068,3.93556129,2934.2,2932.5,0.14548668]
[1769351815364,3.93556129,2934.1,2932.5,0.14548668]
[1769351815553,3.93556129,2934.0,2932.5,0.14548668]
[1769351815760,0.17064,2934.3,2932.5,0.14548668]
[1769351815962,3.93589897,2934.2,2932.5,0.14548668]
[1769351816256,3.93589897,2934.1,2932.5,0.14548668]
[1769351816461,3.93589897,2934.0,2932.5,0.14548668]
[1769351816661,0.17064,2934.3,2932.5,0.14548668]
[1769351816861,3.9355639,2934.2,2932.5,0.14548668]
[1769351817062,3.9355639,2934.1,2932.5,0.14548668]
[1769351817263,3.9355639,2934.0,2932.5,0.14548668]
[1769351817467,0.17064,2934.3,2932.5,0.14548668]
[1769351817671,3.93534471,2934.2,2932.5,0.14548668]
[1769351817967,3.93534471,2934.1,2932.5,0.14548668]
[1769351818172,3.93534471,2934.0,2932.5,0.14548668]
[1769351818371,0.30212256,2934.3,2932.5,0.14548668]
[1769351818559,3.93514211,2934.2,2932.5,0.14548668]
[1769351818760,3.93514211,2934.1,2932.5,0.14548668]
[1769351818955,3.93514211,2934.0,2932.5,0.14548668]
[1769351819160,0.30212256,2934.3,2932.5,0.14548668]
[1769351819366,3.93516099,2934.2,2932.5,0.14548668]
[1769351819575,3.93516099,2934.1,2932.5,0.14548668]
[1769351819866,3.93516099,2934.0,2932.5,0.14548668]
[1769351820067,0.30212256,2934.3,2932.5,0.14548668]
[1769351820257,3.93503089,2934.2,2932.5,0.14548668]
[1769351820460,3.93503089,2934.1,2932.5,0.14548668]
[1769351820668,3.93503089,2934.0,2932.5,0.14548668]
[1769351820868,0.17064,2934.3,2932.5,0.14548668]
[1769351826374,0.17064,2934.3,2932.6,0.14909239]
[1769351828076,6.51740911,2934.8,2932.6,0.31983239]
[1769351828275,3.93332129,2934.7,2932.7,0.14909239]
[1769351828577,3.93332129,2934.6,2932.7,0.14909239]
[1769351828885,6.68801911,2934.8,2932.7,0.14909239]
[1769351829174,3.93314288,2934.7,2932.7,0.14909239]
[1769351829473,3.93314288,2934.6,2932.7,0.14909239]
[1769351829679,6.68801911,2934.8,2932.7,0.14909239]
[1769351829973,3.93342497,2934.7,2932.7,0.14909239]
[1769351830176,3.93342497,2934.6,2932.7,0.14909239]
[1769351830368,6.68801911,2934.8,2932.7,0.14909239]
[1769351830678,4.10454426,2934.7,2932.7,0.14909239]
[1769351830876,3.93392426,2934.6,2932.7,0.14909239]
[1769351831078,0.30235601,2934.6,2932.7,0.14909239]
[1769351831381,3.93464424,2934.5,2932.7,0.14909239]
[1769351831585,0.30235601,2934.6,2932.9,0.14909239]
[1769351831878,3.93464124,2934.5,2933.1,0.14909239]
[1769351832080,0.30235601,2934.6,2933.1,0.14909239]
[1769351832280,3.93447327,2934.5,2933.1,0.14909239]
[1769351832471,0.30235601,2934.6,2933.1,0.14909239]
[1769351832671,3.93562779,2934.5,2933.1,0.14909239]
[1769351832872,0.30235601,2934.6,2933.1,0.14909239]
[1769351833169,3.93562485,2934.5,2933.1,0.14909239]
[1769351833375,0.17062,2934.6,2933.1,0.14909239]
[1769351833570,3.93563512,2934.5,2933.1,0.14909239]
[1769351833780,0.17062,2934.6,2933.1,0.14909239]
[1769351834078,3.93563488,2934.5,2933.1,0.14909239]
[1769351834279,0.17062,2934.6,2933.1,0.14909239]
[1769351834481,3.93571835,2934.5,2933.1,0.14909239]
[1769351834780,0.17062,2934.6,2933.1,0.14909239]
[1769351834980,3.93571822,2934.5,2933.1,0.14909239]
[1769351835174,0.17062,2934.6,2933.1,0.14909239]
[1769351835373,3.93563873,2934.5,2933.1,0.14909239]
[1769351835580,0.17062,2934.6,2933.1,0.14909239]
[1769351835771,3.93569531,2934.5,2933.1,0.14909239]
[1769351835973,0.17062,2934.6,2933.1,0.14909239]
[1769351836176,3.93564726,2934.5,2933.1,0.14909239]
[1769351836378,0.17062,2934.6,2933.1,0.14909239]
[1769351836570,3.93574143,2934.5,2933.1,0.14909239]
[1769351836769,0.17062,2934.6,2933.1,0.14909239]
[1769351836982,3.9357464,2934.5,2933.1,0.14909239]
[1769351837280,0.17062,2934.6,2933.1,0.14909239]
[1769351837481,3.9358481,2934.5,2933.1,0.14909239]
[1769351837681,0.17062,2934.6,2933.1,0.14909239]
[1769351837880,3.9358467,2934.5,2933.1,0.14909239]
[1769351838083,0.17062,2934.6,2933.1,0.14909239]
[1769351838282,3.93584839,2934.5,2933.1,0.14909239]
[1769351838485,0.17062,2934.6,2933.1,0.14909239]
[1769351838683,3.93590913,2934.5,2933.1,0.14909239]
[1769351838980,0.17062,2934.6,2933.1,0.14909239]
[1769351839183,3.93590512,2934.5,2933.1,0.14909239]
[1769351839484,0.17062,2934.6,2933.1,0.14909239]
[1769351839685,3.93602863,2934.5,2933.1,0.14909239]
[1769351839875,0.17062,2934.6,2933.1,0.14909239]
[1769351840076,3.93602839,2934.5,2933.1,0.14909239]
[1769351840276,0.17062,2934.6,2933.1,0.14909239]
[1769351840472,3.9361525,2934.5,2933.1,0.14909239]
[1769351840693,0.17062,2934.6,2933.1,0.14909239]
[1769351840998,3.93614871,2934.5,2933.1,0.14909239]
[1769351841184,0.17062,2934.6,2933.1,0.14909239]
[1769351841479,3.93617769,2934.5,2933.1,0.14909239]
[1769351841673,0.17062,2934.6,2933.1,0.14909239]
[1769351841873,3.93630789,2934.5,2933.1,0.14909239]
[1769351842077,0.17062,2934.6,2933.1,0.14909239]
[1769351850192,0.13416788,2934.4,2933.2,2.002]
[1769351851392,0.13416788,2934.4,2933.3,2.002]
[1769351851583,0.13416788,2934.4,2932.8,0.14146625]
[1769351851783,0.13416788,2934.4,2932.9,2.002]
[1769351852791,0.13416788,2934.4,2933.0,2.002]
[1769351853486,0.13475555,2934.2,2932.4,0.15086041]
[1769351853690,0.17064,2934.4,2932.4,0.15086041]
[1769351853691,4.07554869,2934.1,2932.5,2.002]
[1769351853897,0.13475555,2934.1,2932.5,2.002]
[1769351854296,4.07402376,2934.0,2932.6,2.002]
[1769351854491,0.13475555,2934.0,2932.6,2.002]
[1769351854792,0.13475555,2934.0,2932.7,2.002]
[1769351854793,0.13518281,2933.8,2932.7,2.002]
[1769351854992,4.07432719,2933.7,2932.7,2.002]
[1769351855189,3.93624304,2933.6,2932.3,0.00340389]
[1769351855395,0.13518281,2933.7,2932.6,2.002]
[1769351855592,3.93624118,2933.6,2932.6,2.002]
[1769351855790,0.13518281,2933.7,2932.6,2.002]
[1769351856495,4.06840861,2933.6,2932.3,0.00340389]
[1769351856696,4.06840861,2933.5,2932.4,2.002]
[1769351856887,0.13406632,2933.5,2932.4,2.002]
[1769351857289,0.13406632,2933.5,2932.3,0.00340389]
[1769351857489,0.13406632,2933.5,2932.3,2.00540389]
[1769351857697,3.93186447,2933.4,2932.3,2.00540389]
[1769351857897,0.13406632,2933.5,2932.3,2.00540389]
[1769351858098,3.93186336,2933.4,2932.3,2.00540389]
[1769351858299,0.13406632,2933.5,2932.3,2.00540389]
[1769351858597,0.13406632,2933.5,2932.3,0.00340389]
[1769351860993,0.17068,2933.7,2932.3,0.1542643]
[1769351861887,0.13328399,2933.6,2932.3,0.00340389]
[1769351862093,0.17068,2933.7,2932.3,0.1542643]
[1769351862900,2.13528399,2934.0,2932.3,0.1542643]
[1769351863101,3.413,2934.3,2932.3,0.1542643]
[1769351863298,3.92699306,2934.2,2932.3,0.1542643]
[1769351863496,3.92699306,2934.1,2932.3,0.1542643]
[1769351863699,3.92699306,2934.0,2932.3,0.1542643]
[1769351863998,3.413,2934.3,2932.3,0.1542643]
[1769351864187,3.92688143,2934.2,2932.3,0.1542643]
[1769351864393,3.92688143,2934.1,2932.3,0.1542643]
[1769351864591,3.92688143,2934.0,2932.3,0.1542643]
[1769351864802,0.13162146,2934.0,2932.3,0.1542643]
[1769351865389,0.13162146,2933.7,2932.3,0.00340389]
[1769351867601,0.30230146,2933.7,2932.3,0.00340389]
[1769351869407,0.17068,2933.7,2932.3,0.1542643]
[1769351872604,0.13174224,2934.1,2932.3,0.1542643]
[1769351872806,3.92578357,2934.0,2932.3,0.1542643]
[1769351873006,0.13174224,2934.1,2932.3,0.1542643]
[1769351873211,3.92534962,2934.0,2932.3,0.1542643]
[1769351873404,3.92534962,2933.9,2932.3,0.1542643]
[1769351873602,0.13174224,2934.1,2932.3,0.1542643]
[1769351873803,3.92549152,2934.0,2932.3,0.1542643]
[1769351874105,0.13174224,2934.1,2932.3,0.1542643]
[1769351874307,3.92615647,2934.0,2932.3,0.1542643]
[1769351874506,0.17065,2934.2,2932.3,0.1542643]
[1769351874704,3.92618101,2934.1,2932.3,0.1542643]
[1769351874910,0.17065,2934.2,2932.3,0.1542643]
[1769351875213,3.92628647,2934.1,2932.3,0.1542643]
[1769351875405,3.92712794,2934.0,2932.3,0.1542643]
[1769351875611,0.17065,2934.2,2932.3,0.1542643]
[1769351875812,3.92697408,2934.1,2932.3,0.1542643]
[1769351876010,3.92697408,2934.0,2932.3,0.1542643]
[1769351876210,0.17065,2934.2,2932.3,0.1542643]
[1769351876413,3.92750353,2934.1,2932.3,0.1542643]
[1769351876711,3.92750353,2934.0,2932.3,0.1542643]
[1769351876907,0.30292692,2934.2,2932.5,0.15086041]
[1769351877214,3.92749772,2934.1,2932.5,0.15086041]
[1769351877408,3.92749772,2934.0,2932.5,0.15086041]
[1769351877707,0.30292692,2934.2,2932.5,0.15086041]
[1769351877899,3.92856577,2934.1,2932.5,0.15086041]
[1769351878104,3.92856577,2934.0,2932.5,0.15086041]
[1769351878304,0.30292692,2934.2,2932.5,0.15086041]
[1769351878509,3.92966698,2934.1,2932.5,0.15086041]
[1769351878713,0.30292692,2934.2,2932.5,0.15086041]
[1769351879011,3.92992029,2934.1,2932.5,0.15086041]
[1769351879213,0.30292692,2934.2,2932.5,0.15086041]
[1769351879414,3.93145166,2934.1,2932.5,0.15086041]
[1769351879612,0.30292692,2934.2,2932.5,0.15086041]
[1769351879815,3.93144457,2934.1,2932.5,0.15086041]
[1769351880015,0.17065,2934.2,2932.5,0.15086041]
[1769351880218,3.93295275,2934.1,2932.5,0.15086041]
[1769351880417,0.17065,2934.2,2932.5,0.15086041]
[1769351880617,3.93295299,2934.1,2932.5,0.15086041]
[1769351880918,0.17065,2934.2,2932.5,0.15086041]
[1769351881113,3.93230787,2934.1,2932.5,0.15086041]
[1769351881313,0.17065,2934.2,2932.5,0.15086041]
[1769351882919,6.386,2934.5,2932.5,0.15086041]
[1769351883218,3.93485859,2934.4,2932.6,0.14676472]
[1769351883413,0.17061,2934.8,2932.6,0.17073]
[1769351883617,3.93552289,2934.7,2932.7,0.14676472]
[1769351883817,3.93552289,2934.6,2932.7,0.14676472]
[1769351884020,0.17061,2934.8,2932.8,0.14676472]
[1769351884319,0.17061,2934.8,2933.0,0.14676472]
[1769351884513,0.17061,2934.8,2933.2,0.14676472]
[1769351886019,3.414,2934.9,2933.2,0.14676472]
[1769351890320,3.414,2934.9,2933.3,2.002]
[1769351890510,3.414,2934.9,2933.4,0.14676472]
[1769351893918,0.00345168,2935.0,2933.4,0.14676472]
[1769351897323,0.13818466,2935.0,2933.5,2.002]
[1769351900322,0.00345168,2935.0,2933.6,0.15096232]
[1769351901623,0.00345168,2935.0,2933.7,0.15096232]
[1769351901823,0.00345168,2935.0,2933.8,2.002]
[1769351902030,0.00345168,2935.0,2933.9,2.002]
[1769351903028,0.00345168,2935.0,2933.3,0.15096232]
[1769351903329,0.00345168,2935.0,2933.6,2.002]
[1769351904229,0.00345168,2935.0,2933.6,2.001]
[1769351904931,0.00345168,2935.0,2933.3,0.15096232]
[1769351905132,0.00345168,2935.0,2933.4,2.001]
[1769351905625,0.00345168,2935.0,2933.4,0.15096232]
[1769351905831,0.00345168,2935.0,2933.5,2.001]
[1769351906728,0.17062,2934.7,2932.8,3.413]
[1769351906929,0.30477222,2934.7,2933.0,0.15096232]
[1769351907630,0.30477222,2934.7,2933.1,2.001]
[1769351907831,0.13415222,2934.5,2933.1,2.001]
[1769351908329,0.13415222,2934.5,2933.1,2.15196232]
[1769351908522,0.17062,2934.6,2933.2,0.15096232]
[1769351909028,0.30534339,2934.6,2933.1,2.001]
[1769351910829,0.30534339,2934.6,2932.8,0.15096232]
[1769351911032,3.93273236,2934.5,2932.9,2.15296232]
[1769351911234,0.30534339,2934.6,2932.9,2.15296232]
[1769351911530,3.93439336,2934.5,2932.9,2.15296232]
[1769351911731,0.30534339,2934.6,2932.9,2.15296232]
[1769351911930,3.93439296,2934.5,2932.9,2.15296232]
[1769351912131,0.30534339,2934.6,2932.9,2.15296232]
[1769351912433,3.93562961,2934.5,2933.0,0.15096232]
[1769351912635,0.17062,2934.6,2933.0,0.15096232]
[1769351912831,3.93564975,2934.5,2933.0,0.15096232]
[1769351913032,0.17062,2934.6,2933.0,0.15096232]
[1769351913233,3.93602326,2934.5,2933.0,0.15096232]
[1769351913436,0.17062,2934.6,2933.0,0.15096232]
[1769351913636,3.93603233,2934.5,2933.0,0.15096232]
[1769351913832,0.17062,2934.6,2933.0,0.15096232]
[1769351914136,3.93575752,2934.5,2933.2,0.1508616]
[1769351914334,0.17062,2934.6,2933.2,0.1508616]
[1769351914535,3.93573825,2934.5,2933.2,0.1508616]
[1769351914835,0.17062,2934.6,2933.2,0.1508616]
[1769351920440,0.17062,2934.6,2933.2,2.1528616]
[1769351920741,0.17062,2934.6,2933.2,0.1508616]
[1769351932149,3.93807912,2934.5,2933.2,0.1508616]
[1769351932348,0.17062,2934.6,2933.2,0.1508616]
[1769351932649,3.93807912,2934.5,2933.2,0.1508616]
[1769351932850,0.17062,2934.6,2933.2,0.1508616]
[1769351933048,3.9380807,2934.5,2933.2,0.1508616]
[1769351933350,0.17062,2934.6,2933.2,0.1508616]
[1769351933549,3.93936809,2934.5,2933.2,0.1508616]
[1769351933853,0.17062,2934.6,2933.2,0.1508616]
[1769351934049,3.93937079,2934.5,2933.2,0.1508616]
[1769351934250,0.17062,2934.6,2933.2,0.1508616]
[1769351934450,3.94114475,2934.5,2933.2,0.1508616]
[1769351934649,0.17062,2934.6,2933.2,0.1508616]
[1769351934846,0.17064,2934.4,2933.2,0.1508616]
[1769351935051,4.24313926,2934.3,2932.7,0.1508616]
[1769351935251,3.94070175,2934.2,2932.7,0.1508616]
[1769351935548,4.11135175,2934.2,2932.7,0.1508616]
[1769351935850,3.94070175,2934.1,2932.7,0.1508616]
[1769351936052,3.94070175,2934.0,2932.7,0.1508616]
[1769351936348,3.93985329,2933.9,2932.7,0.1508616]
[1769351936545,3.93985329,2933.8,2932.7,0.1508616]
[1769351936744,0.17066,2934.0,2932.7,0.1508616]
[1769351936945,3.93977087,2933.9,2932.7,0.1508616]
[1769351937141,0.17066,2934.0,2932.7,0.1508616]
[1769351937347,3.9378817,2933.9,2932.7,0.1508616]
[1769351937553,0.17066,2934.0,2932.7,0.1508616]
[1769351937756,3.93788384,2933.9,2932.7,0.1508616]
[1769351937949,0.17066,2934.0,2932.7,0.1508616]
[1769351938150,3.93789054,2933.9,2932.7,0.1508616]
[1769351938352,0.17066,2934.0,2932.7,0.1508616]
[1769351938557,3.93642481,2933.9,2932.7,0.1508616]
[1769351938856,0.17066,2934.0,2932.7,0.1508616]
[1769351939059,3.93642373,2933.9,2932.7,0.1508616]
[1769351939353,0.17066,2934.0,2932.7,0.1508616]
[1769351939559,3.93529264,2933.9,2932.7,0.1508616]
[1769351939760,0.17066,2934.0,2932.7,0.1508616]
[1769351939958,3.93529,2933.9,2932.7,0.1508616]
[1769351940154,0.17066,2934.0,2932.7,0.1508616]
[1769351940352,3.93516213,2933.9,2932.7,0.1508616]
[1769351940656,0.17066,2934.0,2932.7,0.1508616]
[1769351940961,3.93516083,2933.9,2932.7,0.1508616]
[1769351941261,0.17066,2934.0,2932.7,0.1508616]
[1769351941565,3.93500393,2933.9,2932.7,0.1508616]
[1769351941765,0.17066,2934.0,2932.7,0.1508616]
[1769351941965,3.93419244,2933.9,2932.7,0.1508616]
[1769351942166,0.17066,2934.0,2932.7,0.1508616]
[1769351959180,3.9335379,2933.9,2932.7,0.1508616]
[1769351959379,0.17066,2934.0,2932.7,0.1508616]
[1769351959683,3.93367362,2933.9,2932.7,0.1508616]
[1769351959986,0.17066,2934.0,2932.7,0.1508616]
[1769351960186,3.93369435,2933.9,2932.7,0.1508616]
[1769351960385,0.17066,2934.0,2932.7,0.1508616]
[1769351960589,3.93484032,2933.9,2932.7,0.1508616]
[1769351960881,0.17066,2934.0,2932.7,0.1508616]
[1769351961085,3.93510737,2933.9,2932.7,0.1508616]
[1769351961291,0.17066,2934.0,2932.7,0.1508616]
[1769351961478,3.93613779,2933.9,2932.7,0.1508616]
[1769351961785,0.17066,2934.0,2932.7,0.1508616]
[1769351961990,3.93613803,2933.9,2932.7,0.1508616]
[1769351962187,0.17066,2934.0,2932.7,0.1508616]
[1769351962486,3.93732864,2933.9,2932.7,0.1508616]
[1769351962686,0.17066,2934.0,2932.7,0.1508616]
[1769351962887,3.93744188,2933.9,2932.7,0.1508616]
[1769351963086,3.93908009,2933.8,2932.7,0.1508616]
[1769351963386,0.17066,2934.0,2932.7,0.1508616]
[1769351963590,3.93917366,2933.9,2932.7,0.1508616]
[1769351963785,3.93917366,2933.8,2932.7,0.1508616]
[1769351963984,0.17066,2934.0,2932.7,0.1508616]
[1769351964186,3.93917,2933.9,2932.7,0.1508616]
[1769351964384,3.93917,2933.8,2932.7,0.1508616]
[1769351964585,0.17066,2934.0,2932.7,0.1508616]
[1769351964785,3.94211673,2933.9,2932.7,0.1508616]
[1769351964985,3.94211673,2933.8,2932.7,0.1508616]
[1769351965185,3.94211673,2933.7,2932.7,0.1508616]
[1769351965393,0.17066,2934.0,2932.7,0.1508616]
[1769351965583,3.94356754,2933.9,2932.7,0.1508616]
[1769351965783,3.94356754,2933.8,2932.7,0.1508616]
[1769351966087,3.94356754,2933.7,2932.7,0.1508616]
[1769351966291,0.17066,2934.0,2932.7,0.1508616]
[1769351966588,3.94450745,2933.9,2932.7,0.1508616]
[1769351966790,3.94450745,2933.8,2932.7,0.1508616]
[1769351966984,3.94450745,2933.7,2932.7,0.1508616]
[1769351967185,0.17066,2934.0,2932.7,0.1508616]
[1769351967392,3.94463326,2933.9,2932.7,0.1508616]
[1769351967594,3.94463326,2933.8,2932.7,0.1508616]
[1769351967889,3.94463326,2933.7,2932.7,0.1508616]
[1769351968194,0.17066,2934.0,2932.7,0.1508616]
[1769351968398,3.94428493,2933.9,2932.7,0.1508616]
[1769351968695,3.94428493,2933.8,2932.7,0.1508616]
[1769351968991,3.94424038,2933.7,2932.7,0.1508616]
[1769351969193,0.17066,2934.0,2932.7,0.1508616]
[1769351969394,3.94431703,2933.9,2932.7,0.1508616]
[1769351969586,3.94431703,2933.8,2932.7,0.1508616]
[1769351969786,0.17066,2934.0,2932.7,0.1508616]
[1769351970089,3.9442372,2933.9,2932.7,0.1508616]
[1769351970293,3.9442372,2933.8,2932.7,0.1508616]
[1769351970592,0.17066,2934.0,2932.7,0.1508616]
[1769351970792,3.9441365,2933.9,2932.7,0.1508616]
[1769351970992,3.9441365,2933.8,2932.7,0.1508616]
[1769351971292,0.17066,2934.0,2932.7,0.1508616]
[1769351971491,3.94405484,2933.9,2932.7,0.1508616]
[1769351971692,3.94405484,2933.8,2932.7,0.1508616]
[1769351971890,0.17063,2934.6,2932.7,0.1508616]
[1769351972102,3.94456829,2934.5,2932.7,0.1508616]
[1769351972393,3.94456829,2934.4,2932.7,0.1508616]
[1769351972594,3.94456829,2934.3,2932.7,0.1508616]
[1769351972895,0.17063,2934.6,2932.7,0.1508616]
[1769351973090,3.94215006,2934.5,2932.8,0.1390717]
[1769351973400,0.17063,2934.6,2932.8,0.1390717]
[1769351974100,0.00345168,2935.0,2932.9,0.3097917]
[1769351974395,3.93962791,2934.9,2933.1,0.1390717]
[1769351974597,0.00345168,2935.0,2933.1,0.1390717]
[1769351974797,3.93689307,2934.9,2933.1,0.1390717]
[1769351974997,0.00345168,2935.0,2933.1,0.1390717]
[1769351975198,3.93695594,2934.9,2933.1,0.1390717]
[1769351975495,0.00345168,2935.0,2933.2,0.1390717]
[1769351975898,0.00345168,2935.0,2933.4,0.1390717]
[1769351979798,0.00345168,2935.0,2933.6,0.1390717]
[1769351980497,0.13619676,2935.0,2933.3,0.1390717]
[1769351991606,0.00345168,2935.0,2933.3,0.1390717]
[1769351994216,0.00345168,2935.0,2933.4,0.1390717]
[1769351998425,3.92351237,2934.9,2933.4,0.1390717]
[1769351998616,0.00345168,2935.0,2933.4,0.1390717]
[1769351998923,3.92576306,2934.9,2933.4,0.1390717]
[1769351999125,0.00345168,2935.0,2933.4,0.1390717]
[1769351999420,3.92576381,2934.9,2933.4,0.1390717]
[1769351999620,0.00345168,2935.0,2933.4,0.1390717]
[1769351999823,3.9275724,2934.9,2933.4,0.1390717]
[1769352000023,0.00345168,2935.0,2933.4,0.1390717]
[1769352000222,3.9275724,2934.9,2933.4,0.1390717]
[1769352000421,3.9275724,2934.8,2933.4,0.1390717]
[1769352000725,0.00345168,2935.0,2933.4,0.1390717]